[Event "Titled Tuesday Blitz January 17 Early 2023"]
[White "Nugumanov, Bakhtiyar"]
[Black "Hajiyev, Kanan"]
[WhiteFideId "13701797"]
[BlackFideId "13404148"]
[WhiteElo "2316"]
[BlackElo "2197"]
[Result "0-1"]
[Round "08"]
[TimeControl "180+2"]
[Date "2023.01.17"]
[WhiteClock "0:00:02"]
[BlackClock "0:00:18"]

1. Nf3 {[%clk 0:02:40]}  c6 {[%clk 0:03:00]} 2. c4 {[%clk 0:02:40]}  d5 {[%clk 0:02:42]} 3. cxd5 {[%clk 0:02:40]}  cxd5 {[%clk 0:02:43]} 4. g3 {[%clk 0:02:40]}  Nf6 {[%clk 0:02:44]} 5. Bg2 {[%clk 0:02:40]}  Nc6 {[%clk 0:02:44]} 6. d4 {[%clk 0:02:41]}  Bf5 {[%clk 0:02:44]} 7. O-O {[%clk 0:02:41]}  e6 {[%clk 0:02:44]} 8. Nc3 {[%clk 0:02:42]}  Ne4 {[%clk 0:02:44]} 9. Nh4 {[%clk 0:02:40]}  Nxc3 {[%clk 0:02:44]} 10. bxc3 {[%clk 0:02:41]}  Bg4 {[%clk 0:02:41]} 11. f3 {[%clk 0:02:38]}  Bh5 {[%clk 0:02:38]} 12. f4 {[%clk 0:02:19]}  Be7 {[%clk 0:02:33]} 13. Nf3 {[%clk 0:02:19]}  O-O {[%clk 0:02:31]} 14. Bd2 {[%clk 0:02:14]}  Na5 {[%clk 0:02:30]} 15. Ne5 {[%clk 0:02:02]}  f6 {[%clk 0:02:30]} 16. Nd3 {[%clk 0:01:59]}  Nc4 {[%clk 0:02:28]} 17. h3 {[%clk 0:01:54]}  b6 {[%clk 0:02:10]} 18. g4 {[%clk 0:01:53]}  Bf7 {[%clk 0:02:06]} 19. e4 {[%clk 0:01:44]}  Rc8 {[%clk 0:02:03]} 20. Rc1 {[%clk 0:01:36]}  Qd7 {[%clk 0:01:55]} 21. Qe2 {[%clk 0:01:25]}  Ba3 {[%clk 0:01:54]} 22. Rc2 {[%clk 0:01:23]}  Nxd2 {[%clk 0:01:43]} 23. Qxd2 {[%clk 0:01:20]}  dxe4 {[%clk 0:01:38]} 24. Bxe4 {[%clk 0:01:21]}  Bg6 {[%clk 0:01:38]} 25. Bxg6 {[%clk 0:01:05]}  hxg6 {[%clk 0:01:38]} 26. Qe3 {[%clk 0:01:01]}  Qd5 {[%clk 0:01:32]} 27. Re1 {[%clk 0:00:57]}  Rc6 {[%clk 0:01:29]} 28. Nf2 {[%clk 0:00:25]}  Bb4 {[%clk 0:01:21]} 29. Nd1 {[%clk 0:00:07]}  Rfc8 {[%clk 0:01:18]} 30. Ree2 {[%clk 0:00:02]}  Kf7 {[%clk 0:01:10]} 31. c4 {[%clk 0:00:02]}  Rxc4 {[%clk 0:01:08]} 32. Rxc4 {[%clk 0:00:03]}  Rxc4 {[%clk 0:01:05]} 33. Nb2 {[%clk 0:00:02]}  Rxd4 {[%clk 0:01:02]} 34. Kf2 {[%clk 0:00:03]}  Bc5 {[%clk 0:00:58]} 35. Kg3 {[%clk 0:00:02]}  a5 {[%clk 0:00:43]} 36. Qf3 {[%clk 0:00:02]}  Qxf3+ {[%clk 0:00:36]} 37. Kxf3 {[%clk 0:00:02]}  b5 {[%clk 0:00:34]} 38. Rc2 {[%clk 0:00:03]}  Bd6 {[%clk 0:00:28]} 39. Rc6 {[%clk 0:00:03]}  Rxf4+ {[%clk 0:00:19]} 40. Ke3 {[%clk 0:00:03]}  Be5 {[%clk 0:00:20]} 41. Nd3 {[%clk 0:00:03]}  Ra4 {[%clk 0:00:18]} 42. Rc5 {[%clk 0:00:02]}  Bd4+ {[%clk 0:00:18]} 43. Ke4 {[%clk 0:00:02]}  Bxc5+ {[%clk 0:00:18]} 44. Kf3 {[%clk 0:00:02]}  Ra3 {[%clk 0:00:18]} 45. Ke4 {[%clk 0:00:02]}  f5+ {[%clk 0:00:17]} 46. gxf5 {[%clk 0:00:01]}  gxf5+ {[%clk 0:00:18]} 47. Ke5 {[%clk 0:00:02]}  Rxd3 {[%clk 0:00:17]} 48. h4 {[%clk 0:00:03]}  Be3 {[%clk 0:00:18]} 49. h5 {[%clk 0:00:02]}  Rd5# {[%clk 0:00:18]} 0-1


[Site "https://www.chess.com"]

[Event "Titled Tuesday Blitz January 17 Early 2023"]
[White "Kazancev, Valerij M"]
[Black "Mrudul Dehankar"]
[WhiteFideId "4179609"]
[BlackFideId "25096990"]
[WhiteElo "2313"]
[BlackElo "2030"]
[Result "1-0"]
[Round "08"]
[TimeControl "180+2"]
[Date "2023.01.17"]
[WhiteClock "0:00:10"]
[BlackClock "0:00:01"]

1. c4 {[%clk 0:02:56]}  e5 {[%clk 0:02:57]} 2. g3 {[%clk 0:02:56]}  Nf6 {[%clk 0:02:56]} 3. Bg2 {[%clk 0:02:56]}  d5 {[%clk 0:02:55]} 4. cxd5 {[%clk 0:02:57]}  Nxd5 {[%clk 0:02:55]} 5. Nc3 {[%clk 0:02:58]}  Nb6 {[%clk 0:02:55]} 6. Nf3 {[%clk 0:02:57]}  Nc6 {[%clk 0:02:55]} 7. O-O {[%clk 0:02:58]}  Be7 {[%clk 0:02:56]} 8. b3 {[%clk 0:02:58]}  O-O {[%clk 0:02:56]} 9. Bb2 {[%clk 0:02:59]}  Bg4 {[%clk 0:02:55]} 10. h3 {[%clk 0:02:58]}  Be6 {[%clk 0:02:54]} 11. Rc1 {[%clk 0:02:57]}  Qd7 {[%clk 0:02:43]} 12. Kh2 {[%clk 0:02:56]}  f5 {[%clk 0:02:42]} 13. d3 {[%clk 0:02:51]}  Bf6 {[%clk 0:02:40]} 14. Nd2 {[%clk 0:02:08]}  Rad8 {[%clk 0:02:30]} 15. Nb5 {[%clk 0:02:02]}  Bd5 {[%clk 0:01:26]} 16. e4 {[%clk 0:01:08]}  Bf7 {[%clk 0:01:12]} 17. exf5 {[%clk 0:01:03]}  Qxd3 {[%clk 0:01:11]} 18. Nc4 {[%clk 0:00:50]}  Qxf5 {[%clk 0:01:10]} 19. Qe2 {[%clk 0:00:42]}  Nxc4 {[%clk 0:01:01]} 20. bxc4 {[%clk 0:00:43]}  Nd4 {[%clk 0:00:58]} 21. Bxd4 {[%clk 0:00:41]}  exd4 {[%clk 0:00:58]} 22. Nxc7 {[%clk 0:00:38]}  d3 {[%clk 0:00:50]} 23. Qd2 {[%clk 0:00:38]}  Kh8 {[%clk 0:00:10]} 24. Nd5 {[%clk 0:00:34]}  Bxd5 {[%clk 0:00:09]} 25. cxd5 {[%clk 0:00:31]}  Rfe8 {[%clk 0:00:03]} 26. Rfe1 {[%clk 0:00:21]}  Re7 {[%clk 0:00:02]} 27. Rxe7 {[%clk 0:00:17]}  Bxe7 {[%clk 0:00:02]} 28. Rd1 {[%clk 0:00:17]}  Bf6 {[%clk 0:00:02]} 29. f4 {[%clk 0:00:16]}  Re8 {[%clk 0:00:01]} 30. Qxd3 {[%clk 0:00:17]}  Qh5 {[%clk 0:00:02]} 31. g4 {[%clk 0:00:16]}  Qf7 {[%clk 0:00:02]} 32. d6 {[%clk 0:00:16]}  Bd8 {[%clk 0:00:02]} 33. Qd4 {[%clk 0:00:15]}  Bb6 {[%clk 0:00:02]} 34. Qa4 {[%clk 0:00:14]}  Rd8 {[%clk 0:00:02]} 35. d7 {[%clk 0:00:14]}  Qe7 {[%clk 0:00:02]} 36. Qe4 {[%clk 0:00:13]}  Qf7 {[%clk 0:00:01]} 37. Kg3 {[%clk 0:00:12]}  Bc7 {[%clk 0:00:01]} 38. Rd5 {[%clk 0:00:11]}  Rf8 {[%clk 0:00:01]} 39. Rf5 {[%clk 0:00:10]} 1-0


[Site "https://www.chess.com"]

[Event "Titled Tuesday Blitz January 17 Early 2023"]
[White "I_KID_you_not"]
[Black "Ortega Ruiz, Jose Miguel"]
[BlackFideId "2209713"]
[WhiteElo "2332"]
[BlackElo "2351"]
[Result "0-1"]
[Round "08"]
[TimeControl "180+2"]
[Date "2023.01.17"]
[WhiteClock "0:00:15"]
[BlackClock "0:01:49"]

1. e4 {[%clk 0:03:00]}  e6 {[%clk 0:02:58]} 2. d4 {[%clk 0:03:00]}  d5 {[%clk 0:02:59]} 3. Bd3 {[%clk 0:03:00]}  dxe4 {[%clk 0:02:59]} 4. Bxe4 {[%clk 0:03:01]}  Nf6 {[%clk 0:03:00]} 5. Bf3 {[%clk 0:03:01]}  Bd6 {[%clk 0:03:01]} 6. Ne2 {[%clk 0:02:59]}  O-O {[%clk 0:03:01]} 7. Nd2 {[%clk 0:02:58]}  c5 {[%clk 0:03:01]} 8. Nc4 {[%clk 0:02:56]}  Be7 {[%clk 0:02:59]} 9. O-O {[%clk 0:02:53]}  Nc6 {[%clk 0:02:57]} 10. dxc5 {[%clk 0:02:39]}  Bxc5 {[%clk 0:02:57]} 11. Qxd8 {[%clk 0:02:32]}  Rxd8 {[%clk 0:02:58]} 12. Bg5 {[%clk 0:02:27]}  h6 {[%clk 0:02:57]} 13. Bxf6 {[%clk 0:02:26]}  gxf6 {[%clk 0:02:58]} 14. Rfd1 {[%clk 0:02:26]}  Bd7 {[%clk 0:02:57]} 15. c3 {[%clk 0:02:21]}  Be8 {[%clk 0:02:57]} 16. b4 {[%clk 0:02:15]}  Be7 {[%clk 0:02:57]} 17. b5 {[%clk 0:02:10]}  Rxd1+ {[%clk 0:02:52]} 18. Rxd1 {[%clk 0:02:09]}  Nd8 {[%clk 0:02:52]} 19. a4 {[%clk 0:01:54]}  Rc8 {[%clk 0:02:47]} 20. Nd6 {[%clk 0:01:54]}  Bxd6 {[%clk 0:02:48]} 21. Rxd6 {[%clk 0:01:54]}  e5 {[%clk 0:02:48]} 22. Bd5 {[%clk 0:01:50]}  a6 {[%clk 0:02:47]} 23. c4 {[%clk 0:01:45]}  axb5 {[%clk 0:02:46]} 24. axb5 {[%clk 0:01:44]}  Ne6 {[%clk 0:02:43]} 25. Bxe6 {[%clk 0:01:31]}  fxe6 {[%clk 0:02:44]} 26. Rxe6 {[%clk 0:01:32]}  Bf7 {[%clk 0:02:44]} 27. Rxf6 {[%clk 0:01:17]}  Bxc4 {[%clk 0:02:43]} 28. Kf1 {[%clk 0:01:06]}  Bxb5 {[%clk 0:02:43]} 29. Ke1 {[%clk 0:01:07]}  Rc2 {[%clk 0:02:43]} 30. Ng3 {[%clk 0:01:04]}  Rb2 {[%clk 0:02:43]} 31. Re6 {[%clk 0:01:02]}  Bc6 {[%clk 0:02:38]} 32. Rxe5 {[%clk 0:00:54]}  Bxg2 {[%clk 0:02:37]} 33. Nf5 {[%clk 0:00:53]}  h5 {[%clk 0:02:30]} 34. Nd6 {[%clk 0:00:48]}  b6 {[%clk 0:02:24]} 35. Rxh5 {[%clk 0:00:45]}  Kf8 {[%clk 0:02:15]} 36. Rg5 {[%clk 0:00:33]}  Bc6 {[%clk 0:02:10]} 37. Nc4 {[%clk 0:00:29]}  Rb4 {[%clk 0:02:10]} 38. Ne5 {[%clk 0:00:29]}  Be4 {[%clk 0:02:10]} 39. f4 {[%clk 0:00:28]}  Rb2 {[%clk 0:02:07]} 40. h4 {[%clk 0:00:28]}  b5 {[%clk 0:02:06]} 41. f5 {[%clk 0:00:26]}  Ke7 {[%clk 0:02:04]} 42. h5 {[%clk 0:00:20]}  Kf6 {[%clk 0:02:04]} 43. h6 {[%clk 0:00:18]}  Rh2 {[%clk 0:01:53]} 44. h7 {[%clk 0:00:18]}  Kxe5 {[%clk 0:01:49]} 45. Rg2 {[%clk 0:00:15]} 0-1


[Site "https://www.chess.com"]

[Event "Titled Tuesday Blitz January 17 Early 2023"]
[White "Granados Diaz, Maria Esther"]
[Black "Myshakov, Fyodor"]
[WhiteFideId "6101488"]
[BlackFideId "14111284"]
[WhiteElo "1868"]
[BlackElo "2292"]
[Result "0-1"]
[Round "08"]
[TimeControl "180+2"]
[Date "2023.01.17"]
[WhiteClock "0:00:39"]
[BlackClock "0:01:47"]

1. e4 {[%clk 0:03:00]}  c6 {[%clk 0:02:59]} 2. Nc3 {[%clk 0:02:58]}  d5 {[%clk 0:03:00]} 3. Nf3 {[%clk 0:02:59]}  Bg4 {[%clk 0:02:59]} 4. h3 {[%clk 0:02:57]}  Bxf3 {[%clk 0:02:59]} 5. Qxf3 {[%clk 0:02:58]}  e6 {[%clk 0:03:00]} 6. Be2 {[%clk 0:02:56]}  Nd7 {[%clk 0:02:53]} 7. d3 {[%clk 0:02:48]}  Bb4 {[%clk 0:02:51]} 8. O-O {[%clk 0:02:47]}  Ne7 {[%clk 0:02:49]} 9. Qg3 {[%clk 0:02:31]}  O-O {[%clk 0:02:45]} 10. a3 {[%clk 0:02:29]}  Bc5 {[%clk 0:02:44]} 11. Bf4 {[%clk 0:02:26]}  Ng6 {[%clk 0:02:42]} 12. Bc7 {[%clk 0:02:15]}  Qc8 {[%clk 0:02:38]} 13. Bd6 {[%clk 0:02:09]}  Bxd6 {[%clk 0:02:35]} 14. Qxd6 {[%clk 0:02:10]}  Rd8 {[%clk 0:02:35]} 15. Qg3 {[%clk 0:02:08]}  Nf6 {[%clk 0:02:33]} 16. Rad1 {[%clk 0:01:59]}  e5 {[%clk 0:02:27]} 17. Bg4 {[%clk 0:01:09]}  Nxg4 {[%clk 0:02:18]} 18. hxg4 {[%clk 0:01:10]}  Nf4 {[%clk 0:02:17]} 19. Rfe1 {[%clk 0:01:09]}  d4 {[%clk 0:02:12]} 20. Nb1 {[%clk 0:00:59]}  Rd6 {[%clk 0:02:11]} 21. c3 {[%clk 0:00:48]}  Rg6 {[%clk 0:02:09]} 22. f3 {[%clk 0:00:45]}  c5 {[%clk 0:02:09]} 23. Nd2 {[%clk 0:00:43]}  Nxd3 {[%clk 0:02:05]} 24. Nc4 {[%clk 0:00:38]}  Nxe1 {[%clk 0:01:54]} 25. Rxe1 {[%clk 0:00:39]}  Re6 {[%clk 0:01:47]} 0-1


[Site "https://www.chess.com"]

[Event "Titled Tuesday Blitz January 17 Early 2023"]
[White "MunichMouse"]
[Black "Sanchez, Robert"]
[BlackFideId "2034360"]
[WhiteElo "2211"]
[BlackElo "1966"]
[Result "1-0"]
[Round "08"]
[TimeControl "180+2"]
[Date "2023.01.17"]
[WhiteClock "0:01:59"]
[BlackClock "0:00:41"]

1. d4 {[%clk 0:03:00]}  Nf6 {[%clk 0:02:59]} 2. c4 {[%clk 0:03:01]}  e6 {[%clk 0:03:00]} 3. Nf3 {[%clk 0:02:59]}  Bb4+ {[%clk 0:02:57]} 4. Bd2 {[%clk 0:02:59]}  a5 {[%clk 0:02:56]} 5. Qc2 {[%clk 0:02:58]}  O-O {[%clk 0:02:55]} 6. e4 {[%clk 0:02:58]}  d6 {[%clk 0:02:47]} 7. Bd3 {[%clk 0:02:57]}  h6 {[%clk 0:02:20]} 8. O-O {[%clk 0:02:45]}  Bxd2 {[%clk 0:02:14]} 9. Nbxd2 {[%clk 0:02:45]}  c5 {[%clk 0:02:11]} 10. dxc5 {[%clk 0:02:32]}  dxc5 {[%clk 0:02:10]} 11. Rad1 {[%clk 0:02:32]}  Qc7 {[%clk 0:02:07]} 12. e5 {[%clk 0:02:20]}  Nfd7 {[%clk 0:02:07]} 13. Qc3 {[%clk 0:02:21]}  Nc6 {[%clk 0:02:05]} 14. Rfe1 {[%clk 0:02:22]}  Nb6 {[%clk 0:01:54]} 15. b3 {[%clk 0:02:17]}  a4 {[%clk 0:01:38]} 16. Bb1 {[%clk 0:02:16]}  axb3 {[%clk 0:01:30]} 17. axb3 {[%clk 0:02:17]}  Nb4 {[%clk 0:01:31]} 18. Qe3 {[%clk 0:02:11]}  Qe7 {[%clk 0:01:14]} 19. Ne4 {[%clk 0:02:10]}  Nd7 {[%clk 0:01:02]} 20. Qf4 {[%clk 0:02:03]}  b6 {[%clk 0:00:58]} 21. Nd6 {[%clk 0:02:02]}  f6 {[%clk 0:00:46]} 22. Qe4 {[%clk 0:02:00]}  f5 {[%clk 0:00:41]} 23. Qxa8 {[%clk 0:01:59]} 1-0


[Site "https://www.chess.com"]

[Event "Titled Tuesday Blitz January 17 Early 2023"]
[White "Rose, Felix"]
[Black "Buchenau, Frank"]
[WhiteFideId "5105722"]
[BlackFideId "4604350"]
[WhiteElo "2091"]
[BlackElo "2222"]
[Result "1-0"]
[Round "08"]
[TimeControl "180+2"]
[Date "2023.01.17"]
[WhiteClock "0:00:20"]
[BlackClock "0:00:02"]

1. e4 {[%clk 0:03:00]}  e6 {[%clk 0:02:55]} 2. d4 {[%clk 0:03:00]}  d5 {[%clk 0:02:55]} 3. Nc3 {[%clk 0:03:00]}  Nf6 {[%clk 0:02:55]} 4. e5 {[%clk 0:03:00]}  Nfd7 {[%clk 0:02:55]} 5. f4 {[%clk 0:03:00]}  c5 {[%clk 0:02:55]} 6. Nf3 {[%clk 0:03:01]}  Nc6 {[%clk 0:02:55]} 7. Be3 {[%clk 0:03:01]}  a6 {[%clk 0:02:55]} 8. Qd2 {[%clk 0:03:01]}  b5 {[%clk 0:02:55]} 9. dxc5 {[%clk 0:03:02]}  Bxc5 {[%clk 0:02:55]} 10. Bd3 {[%clk 0:03:02]}  Qb6 {[%clk 0:02:52]} 11. Bf2 {[%clk 0:03:02]}  Bxf2+ {[%clk 0:02:51]} 12. Qxf2 {[%clk 0:03:02]}  Nc5 {[%clk 0:02:51]} 13. O-O {[%clk 0:02:57]}  b4 {[%clk 0:02:50]} 14. Ne2 {[%clk 0:02:52]}  a5 {[%clk 0:02:48]} 15. Kh1 {[%clk 0:02:13]}  Ne7 {[%clk 0:02:30]} 16. Ned4 {[%clk 0:01:39]}  Ba6 {[%clk 0:02:26]} 17. Bxa6 {[%clk 0:01:37]}  Rxa6 {[%clk 0:02:15]} 18. Nb3 {[%clk 0:01:27]}  Na4 {[%clk 0:01:58]} 19. Qxb6 {[%clk 0:01:19]}  Nxb6 {[%clk 0:01:56]} 20. Nfd4 {[%clk 0:01:14]}  Nc4 {[%clk 0:01:54]} 21. Rab1 {[%clk 0:01:11]}  a4 {[%clk 0:01:51]} 22. Nc5 {[%clk 0:01:11]}  Ra5 {[%clk 0:01:50]} 23. Nb7 {[%clk 0:00:58]}  Ra7 {[%clk 0:01:46]} 24. Nd6+ {[%clk 0:00:49]}  Nxd6 {[%clk 0:01:45]} 25. exd6 {[%clk 0:00:50]}  Nc8 {[%clk 0:01:44]} 26. c3 {[%clk 0:00:49]}  Nxd6 {[%clk 0:01:24]} 27. cxb4 {[%clk 0:00:49]}  O-O {[%clk 0:01:21]} 28. f5 {[%clk 0:00:47]}  Nc4 {[%clk 0:01:00]} 29. fxe6 {[%clk 0:00:34]}  Nd2 {[%clk 0:00:59]} 30. exf7+ {[%clk 0:00:33]}  Raxf7 {[%clk 0:00:28]} 31. Rxf7 {[%clk 0:00:33]}  Rxf7 {[%clk 0:00:28]} 32. Rd1 {[%clk 0:00:33]}  Nc4 {[%clk 0:00:19]} 33. b3 {[%clk 0:00:30]}  axb3 {[%clk 0:00:18]} 34. Nxb3 {[%clk 0:00:30]}  Rf2 {[%clk 0:00:15]} 35. h3 {[%clk 0:00:29]}  Rxa2 {[%clk 0:00:14]} 36. Rxd5 {[%clk 0:00:29]}  Rb2 {[%clk 0:00:11]} 37. Nd4 {[%clk 0:00:28]}  Rxb4 {[%clk 0:00:09]} 38. Rd7 {[%clk 0:00:25]}  Rb6 {[%clk 0:00:06]} 39. Nf5 {[%clk 0:00:23]}  Rb1+ {[%clk 0:00:02]} 40. Kh2 {[%clk 0:00:23]}  g6 {[%clk 0:00:02]} 41. Nh6+ {[%clk 0:00:21]}  Kh8 {[%clk 0:00:02]} 42. Nf7+ {[%clk 0:00:21]}  Kg8 {[%clk 0:00:02]} 43. Nh6+ {[%clk 0:00:22]}  Kh8 {[%clk 0:00:02]} 44. Nf7+ {[%clk 0:00:22]}  Kg8 {[%clk 0:00:03]} 45. Nd6 {[%clk 0:00:21]}  Nxd6 {[%clk 0:00:02]} 46. Rd8+ {[%clk 0:00:20]} 1-0


[Site "https://www.chess.com"]

[Event "Titled Tuesday Blitz January 17 Early 2023"]
[White "Horcajuelo Rocamora, Martin"]
[Black "Yuan, Qingyu"]
[WhiteFideId "24573027"]
[BlackFideId "8609772"]
[WhiteElo "2107"]
[BlackElo "2373"]
[Result "0-1"]
[Round "08"]
[TimeControl "180+2"]
[Date "2023.01.17"]
[WhiteClock "0:00:13"]
[BlackClock "0:00:09"]

1. e4 {[%clk 0:03:00]}  e5 {[%clk 0:03:00]} 2. Nf3 {[%clk 0:03:00]}  Nc6 {[%clk 0:03:00]} 3. Bb5 {[%clk 0:02:56]}  Nf6 {[%clk 0:03:01]} 4. d3 {[%clk 0:02:55]}  Bc5 {[%clk 0:03:01]} 5. O-O {[%clk 0:02:55]}  Nd4 {[%clk 0:03:00]} 6. Nxd4 {[%clk 0:02:54]}  Bxd4 {[%clk 0:03:01]} 7. c3 {[%clk 0:02:54]}  Bb6 {[%clk 0:03:01]} 8. Nd2 {[%clk 0:02:53]}  O-O {[%clk 0:03:01]} 9. Nf3 {[%clk 0:02:48]}  d5 {[%clk 0:02:57]} 10. exd5 {[%clk 0:02:46]}  Qxd5 {[%clk 0:02:55]} 11. Bc4 {[%clk 0:02:46]}  Qd6 {[%clk 0:02:55]} 12. Re1 {[%clk 0:02:46]}  e4 {[%clk 0:02:44]} 13. dxe4 {[%clk 0:02:40]}  Qxd1 {[%clk 0:02:38]} 14. Rxd1 {[%clk 0:02:41]}  Nxe4 {[%clk 0:02:38]} 15. Nd4 {[%clk 0:02:28]}  Bd7 {[%clk 0:02:18]} 16. Be3 {[%clk 0:02:27]}  Rad8 {[%clk 0:02:16]} 17. f3 {[%clk 0:02:19]}  Nd6 {[%clk 0:02:13]} 18. Bd3 {[%clk 0:02:17]}  Rfe8 {[%clk 0:02:11]} 19. Bf2 {[%clk 0:02:17]}  h6 {[%clk 0:02:07]} 20. Re1 {[%clk 0:02:01]}  a5 {[%clk 0:01:54]} 21. Rad1 {[%clk 0:02:01]}  Ba4 {[%clk 0:01:51]} 22. b3 {[%clk 0:02:00]}  Bd7 {[%clk 0:01:51]} 23. g3 {[%clk 0:01:54]}  Bc5 {[%clk 0:01:42]} 24. Be3 {[%clk 0:01:53]}  b6 {[%clk 0:01:38]} 25. Kf2 {[%clk 0:01:52]}  Re7 {[%clk 0:01:29]} 26. a4 {[%clk 0:01:41]}  Rde8 {[%clk 0:01:29]} 27. g4 {[%clk 0:01:42]}  f5 {[%clk 0:01:21]} 28. h3 {[%clk 0:01:38]}  fxg4 {[%clk 0:01:14]} 29. hxg4 {[%clk 0:01:23]}  Rf8 {[%clk 0:01:14]} 30. Kg3 {[%clk 0:01:16]}  Rfe8 {[%clk 0:01:12]} 31. Bf2 {[%clk 0:01:15]}  Rxe1 {[%clk 0:01:10]} 32. Rxe1 {[%clk 0:01:16]}  Rxe1 {[%clk 0:01:10]} 33. Bxe1 {[%clk 0:01:17]}  Bxd4 {[%clk 0:01:10]} 34. cxd4 {[%clk 0:01:17]}  Be6 {[%clk 0:00:59]} 35. Bc2 {[%clk 0:01:12]}  Kf7 {[%clk 0:00:51]} 36. Bd2 {[%clk 0:01:08]}  Bd5 {[%clk 0:00:49]} 37. Bf4 {[%clk 0:01:03]}  Ke6 {[%clk 0:00:47]} 38. Be5 {[%clk 0:01:03]}  Ne8 {[%clk 0:00:41]} 39. Bf5+ {[%clk 0:00:54]}  Ke7 {[%clk 0:00:41]} 40. Bc2 {[%clk 0:00:53]}  c6 {[%clk 0:00:41]} 41. Kf4 {[%clk 0:00:44]}  Ke6 {[%clk 0:00:39]} 42. Bf5+ {[%clk 0:00:23]}  Ke7 {[%clk 0:00:38]} 43. Be4 {[%clk 0:00:20]}  Nf6 {[%clk 0:00:20]} 44. Bxf6+ {[%clk 0:00:18]}  Kxf6 {[%clk 0:00:19]} 45. Bxd5 {[%clk 0:00:19]}  cxd5 {[%clk 0:00:20]} 46. Kg3 {[%clk 0:00:14]}  g6 {[%clk 0:00:11]} 47. f4 {[%clk 0:00:14]}  h5 {[%clk 0:00:10]} 48. Kh4 {[%clk 0:00:09]}  Ke6 {[%clk 0:00:04]} 49. gxh5 {[%clk 0:00:09]}  gxh5 {[%clk 0:00:04]} 50. Kxh5 {[%clk 0:00:10]}  Kf5 {[%clk 0:00:05]} 51. Kh6 {[%clk 0:00:09]}  Kxf4 {[%clk 0:00:06]} 52. Kg6 {[%clk 0:00:10]}  Ke4 {[%clk 0:00:06]} 53. Kf6 {[%clk 0:00:10]}  Kxd4 {[%clk 0:00:07]} 54. Ke6 {[%clk 0:00:11]}  Kc5 {[%clk 0:00:07]} 55. Ke5 {[%clk 0:00:11]}  Kb4 {[%clk 0:00:07]} 56. Kxd5 {[%clk 0:00:12]}  Kxb3 {[%clk 0:00:07]} 57. Kc6 {[%clk 0:00:12]}  Kxa4 {[%clk 0:00:08]} 58. Kxb6 {[%clk 0:00:13]}  Kb4 {[%clk 0:00:09]} 0-1


[Site "https://www.chess.com"]